Workbook

Sheet Anleitung (hidden)
B2: Aufgabenliste 1. Bezeichnung "Düngejahr" oder "Erntejahr": wenn Entscheidung, dann anpassen. C. Huth: Abklären 2. Deckelung der möglichen Eingaben (N bzw. P2O5) über 3-Jahresgaben, bei "restliche Flächen" über feste Obergrenzen. Falls noch kein Düngebedarf ermittelt wurde und/oder die Daten noch nicht übertragen wurden, steht die Obergrenze auf Null. 3. Die Angaben vom P2O5-Blatt gehen in die gesamtbetriebliche Nährstoffbilanzierung mit ein. 4. "Neue Parzellen P2O5": Parzelle schon vorhanden bei "N": Warnung und in "N" per Abfrage löschen oder bei P2O5 nicht eintragen "Neue Parzellen-N": Parzelle schon bei P2O5 vorhanden, dann Meldung und nicht mehr bei N eintragbar. 5. P2O5: Bedarf wird nach P2O5-Düngung übertragen. 6. Neues Blatt "Start" als Startseite: zwischen den einzelnen Excel-Blättern kann nur noch per Schaltknopf hin und zurück gesprungen werden. 7. N- und P2O5-Düngung: Datumsfeld vor Düngemittel-Name eingefügt. 8. Rot hinterlegte Felder: dort stehen alte (bereits vorhandene) Eintragungen, die nach div. Änderung ungültig wurden: sind von Hand zu ändern. 9. Startseite: - N-Bilanzierung (kg/ha) wird zusätzlich nach "mineralisch" und "organisch" getrennt angezeigt - die gesamtbetrieblichen Daten werden erst angezeigt, wenn rechts im Feld "Ertragsrebfläche" ein Wert ausgewiesen wird Rot: noch offen Grün: ist erledigt Blau: Änderung seit letzter Fassung Violett: Frage

Sheet Start
T2: DLR Rheinpfalz
T3: Version: | U3: 1.0.0
T4: Stand: | U4: 2021-01-15
E5: Betrieblicher Nährstoffeinsatz für Ertragsanlagen im Weinbau
D10: Betriebsname | E10: Weingut Mustermann | K10: Düngejahr: | L10: 2021 | Q10: Gesamtrebfläche (ha): | R10: 35
D11: Strasse Hausnr. | E11: Riesling-Weg 1 | K11: Beginn und Ende des Düngejahres: | L11: 1. Jan - 31. Dez | Q11: davon NICHT im Ertrag stehend (ha): | R11: 1
D12: PLZ Ort | E12: 67435 Neustadt/Wstr. | L12: =DATEVALUE("1.1." & L10) -> 44197 | M12: =DATEVALUE("31.12." & L10) -> 44561 | Q12: Ertragsrebfläche (ha): | R12: =IF(OR(ISBLANK(R10),ISBLANK(R11)),"",R10-R11) -> 34
J14: Summe*: | L14: Gesamt-N (kg): | M14: =IF(R12="","",IF(COUNT('Betrieblicher Nährstoffeinsatz'!M20:M42,'P2O5 Düngung'!M20:M33)=0,"",SUM('Betrieblicher Nährstoffeinsatz'!M20:M42,'P2O5 Düngung'!M20:M33))) -> 652.6956522
L15: N (kg/ha): | M15: =IF(OR(M14="",R12=""),"",M14/R12) -> 19.19693095
L16: mineralisch N (kg/ha): | M16: =IF(R12="","",IF(COUNT('Betrieblicher Nährstoffeinsatz'!M20:M42,'P2O5 Düngung'!M20:M33)=0,"",IF(N16<=0,0,(SUMIF('Betrieblicher Nährstoffeinsatz'!P20:P42,"mineralisch",'Betrieblicher Nährstoffeinsatz'!M20:M42)+SUMIF('P2O5 Düngung'!P20:P33,"mineralisch",'P2O5 Düngung'!M20:M33))/R12))) -> 0 | N16: =IF(COUNT('Betrieblicher Nährstoffeinsatz'!M20:M42,'P2O5 Düngung'!M20:M33)=0,"",SUMIF('Betrieblicher Nährstoffeinsatz'!P20:P42,"mineralisch",'Betrieblicher Nährstoffeinsatz'!F20:F42)+SUMIF('P2O5 Düngung'!P20:P20,"mineralisch",'P2O5 Düngung'!F20:F33)) -> 0
L17: organisch N (kg/ha): | M17: =IF(R12="","",IF(COUNT('Betrieblicher Nährstoffeinsatz'!M20:M42,'P2O5 Düngung'!M20:M33)=0,"",IF(N17<=0,0,(SUMIF('Betrieblicher Nährstoffeinsatz'!P20:P42,"organisch",'Betrieblicher Nährstoffeinsatz'!M20:M42)+SUMIF('P2O5 Düngung'!P20:P33,"organisch",'P2O5 Düngung'!M20:M33))/R12))) -> 19.19693095 | N17: =IF(COUNT('Betrieblicher Nährstoffeinsatz'!M20:M42,'P2O5 Düngung'!M20:M33)=0,"",SUMIF('Betrieblicher Nährstoffeinsatz'!P20:P42,"organisch",'Betrieblicher Nährstoffeinsatz'!F20:F42)+SUMIF('P2O5 Düngung'!P20:P20,"organisch",'P2O5 Düngung'!F20:F33)) -> 3
L18: N-verfügbar (kg): | M18: =IF(R12="","",IF(COUNT('Betrieblicher Nährstoffeinsatz'!O20:O42,'P2O5 Düngung'!O20:O33)=0,"",SUM('Betrieblicher Nährstoffeinsatz'!O20:O42,'P2O5 Düngung'!O20:O33))) -> 61.74148061
L19: Gesamt-P2O5 (kg): | M19: =IF(R12="","",IF(COUNT('Betrieblicher Nährstoffeinsatz'!N20:N42,'P2O5 Düngung'!N20:N33)=0,"",SUM('Betrieblicher Nährstoffeinsatz'!N20:N42,'P2O5 Düngung'!N20:N33))) -> 202.8648649
E23: P2O5 (Phosphat) | P23: N (Stickstoff)

Sheet Daten (hidden)
D1: Faktor im Anrechnungsjahr [%] | I1: Liste der Düngemittel (%) | J1: für N-Düngung | O1: für P2O5-Düngung | S1: ------------- Eigene Düngemittel
A2: Gruppe | B2: Produkt | C2: N kg/t m³ | D2: aktuell | E2: Jahr 2 | F2: Jahr 3 | G2: Jahr 4 | H2: lfd | I2: Name | J2: N-Gesamt | K2: P2O5-Gesamt | L2: N-verfügbar | N2: Name | O2: N-Gesamt | P2: P2O5-Gesamt | Q2: N-verfügbar | S2: Name | T2: N-Gesamt | U2: P2O5-Gesamt | V2: N-verfügbar | X2: BEW | Y2: Nr Blatt | Z2: min BEW | AA2: max BEW
H3: 1 | I3: Stickstoffmagnesia, Nitromag | J3: 22 | K3: 0 | L3: 22 | M3: mineralisch | N3: Diammonphosphat | O3: 18 | P3: 46 | Q3: 18 | R3: mineralisch | X3: =Z3 & "-" & AA3 -> 1-8 | Y3: 9 | Z3: 1 | AA3: 8 | AB3: 9
A4: Reststoffe Weinbereitung | B4: Trester 40 % TM (t) | C4: 7.4 | D4: 0.1 | E4: 0.1 | F4: 0 | G4: 0 | H4: 2 | I4: Kalkammonsalpeter | J4: 27 | K4: 0 | L4: 27 | M4: mineralisch | N4: Superphosphat | O4: 0 | P4: 18 | Q4: 0 | R4: mineralisch | X4: =Z4 & "-" & AA4 -> 9-16 | Y4: 10 | Z4: =Z3+8 -> 9 | AA4: =AA3+8 -> 16
B5: Trester 40 % TM (m³) | C5: 3.7 | D5: 0.1 | E5: 0.1 | F5: 0 | G5: 0 | H5: 3 | I5: Ammonsulfatsalpeter | J5: 26 | K5: 0 | L5: 26 | M5: mineralisch | N5: Triple-Superphosphat | O5: 0 | P5: 50 | Q5: 0 | R5: mineralisch | X5: 17-24 | Y5: 11 | Z5: =Z4+8 -> 17 | AA5: 24
B6: Mosttrub flüssig (m³) | C6: 5 | D6: 0.8 | E6: 0.1 | F6: 0 | G6: 0 | H6: 4 | I6: Kalksalpeter | J6: 16 | K6: 0 | L6: 16 | M6: mineralisch | N6: Novaphos; Cederan | O6: 0 | P6: 23 | Q6: 0 | R6: mineralisch | X6: 25-32 | Y6: 12 | Z6: 25 | AA6: 32
B7: Weinhefe flüssig 20 % TM (m³) | C7: 8 | D7: 0.8 | E7: 0.1 | F7: 0 | G7: 0 | H7: 5 | I7: Schwefelsaures Ammoniak | J7: 21 | K7: 0 | L7: 21 | M7: mineralisch | N7: Rohphosphat (Öko) | O7: 0 | P7: 31 | Q7: 0 | R7: mineralisch | X7: 33-40 | Y7: 13 | Z7: 33 | AA7: 40
B8: Weinhefe filtriert 40 % TM (t) | C8: 16 | D8: 0.8 | E8: 0.1 | F8: 0 | G8: 0 | H8: 6 | I8: Harnstoff | J8: 46 | K8: 0 | L8: 46 | M8: mineralisch | N8: Cederan P 23 | O8: 0 | P8: 23 | Q8: 0 | R8: mineralisch | X8: 41-48 | Y8: 14 | Z8: 41 | AA8: 48
B9: Weinhefe filtriert 40 % TM (m³) | C9: 11 | D9: 0.8 | E9: 0.1 | F9: 0 | G9: 0 | H9: 7 | I9: Ammonnitrat-Harnstofflösung (AHL) | J9: 28 | K9: 0 | L9: 28 | M9: mineralisch | N9: Stroh | O9: 0.5 | P9: 0.3 | Q9: 0 | R9: organisch | X9: 49-56 | Y9: 15 | Z9: 49 | AA9: 56
B10: Filtrationskieselgur 40 % TM (t) | C10: 6.4 | D10: 0.8 | E10: 0.1 | F10: 0 | G10: 0 | H10: 8 | I10: Basamon stabil; Alzon | J10: 27 | K10: 0 | L10: 27 | M10: mineralisch | N10: Rindermist (25 % TS) | O10: 0.65 | P10: 0.4 | Q10: 0.16 | R10: organisch | X10: 57-64 | Y10: 16 | Z10: 57 | AA10: 64
B11: Eigenes Produkt (Reststoffe) | D11: =D4 -> 0.1 | E11: =E4 -> 0.1 | F11: =F4 -> 0 | G11: =G4 -> 0 | H11: 9 | I11: Entec 26 | J11: 26 | K11: 0 | L11: 26 | M11: mineralisch | N11: Schweinemist (25 % TS) | O11: 0.98 | P11: 0.82 | Q11: 0.29 | R11: organisch | X11: 65-72 | Y11: 17 | Z11: 65 | AA11: 72
H12: 10 | I12: Diammonphosphat | J12: 18 | K12: 46 | L12: 18 | M12: mineralisch | N12: Schafmist (30 % TS) | O12: 0.55 | P12: 0.32 | Q12: 0.14 | R12: organisch | X12: 73-80 | Y12: 18 | Z12: 73 | AA12: 80
A13: Sonstige | B13: Streuwiese 86 % TM (t) | C13: 11 | D13: 0.03 | E13: 0.03 | F13: 0 | G13: 0 | H13: 11 | I13: Stroh | J13: 0.5 | K13: 0.3 | L13: 0 | M13: organisch | N13: Pferdemist (30 % TS) | O13: 0.5 | P13: 0.38 | Q13: 0.13 | R13: organisch | X13: 81-88 | Y13: 19 | Z13: 81 | AA13: 88
B14: Stroh 90 % TM (t) | C14: 5 | D14: 0.02 | E14: 0 | F14: 0 | G14: 0 | H14: 12 | I14: Rindermist (25 % TS) | J14: 0.65 | K14: 0.4 | L14: 0.16 | M14: organisch | N14: Geflügelmist (50 %TS) | O14: 2.2 | P14: 1.8 | Q14: 1.14 | R14: organisch | X14: 89-96 | Y14: 20 | Z14: 89 | AA14: 96
B15: Eigenes Produkt (Sonstige) | D15: =D14 -> 0.02 | E15: =E14 -> 0 | F15: =F14 -> 0 | G15: =G14 -> 0 | H15: 13 | I15: Schweinemist (25 % TS) | J15: 0.98 | K15: 0.82 | L15: 0.29 | M15: organisch | N15: Baumrinde (1m3 = 0,4 t) | O15: 0.3 | P15: 0.1 | Q15: 0 | R15: organisch | X15: 97-104 | Y15: 21 | Z15: 97 | AA15: 104
H16: 14 | I16: Schafmist (30 % TS) | J16: 0.55 | K16: 0.32 | L16: 0.14 | M16: organisch | N16: Rindenkompost | O16: 0.3 | P16: 0.1 | Q16: 0 | R16: organisch | X16: 105-112 | Y16: 22 | Z16: 105 | AA16: 112
A17: Kompost, Pflanzenhilfstoffe | B17: Grünschnittkompost 64 % TM (t) | C17: 6.5 | D17: 0.03 | E17: 0.04 | F17: 0.03 | G17: 0.03 | H17: 15 | I17: Pferdemist (30 % TS) | J17: 0.5 | K17: 0.38 | L17: 0.13 | M17: organisch | N17: Bio(abfall)kompost (52 % TS) | O17: 0.9 | P17: 0.48 | Q17: 0.1 | R17: organisch | X17: 113-120 | Y17: 23 | Z17: 113 | AA17: 120
B18: Bioabfallkompost 52 % TM (t) | C18: 9 | D18: 0.05 | E18: 0.04 | F18: 0.03 | G18: 0.03 | H18: 16 | I18: Geflügelmist (50 %TS) | J18: 2.2 | K18: 1.8 | L18: 1.14 | M18: organisch | N18: Grünschnittkompost (64 % TS) | O18: 0.65 | P18: 0.32 | Q18: 0.04 | R18: organisch | X18: 121-128 | Y18: 24 | Z18: 121 | AA18: 128
B19: Holzhäcksel > 40 mm (t) | C19: 4 | D19: 0 | E19: 0 | F19: 0 | G19: 0 | H19: 17 | I19: Baumrinde (1m3 = 0,4 t) | J19: 0.3 | K19: 0.1 | L19: 0 | M19: organisch | N19: Holzhäcksel > 40 mm | O19: 0.4 | P19: 0.1 | Q19: n.n | R19: organisch | X19: 129-136 | Y19: 25 | Z19: 129 | AA19: 136
B20: Eigenes Produkt (Kompost) | D20: =D17 -> 0.03 | E20: =E17 -> 0.04 | F20: =F17 -> 0.03 | G20: =G17 -> 0.03 | H20: 18 | I20: Rindenkompost | J20: 0.3 | K20: 0.1 | L20: 0 | M20: organisch | N20: Vinasse | O20: 5.2 | P20: 0.5 | Q20: 0 | R20: organisch | X20: 137-144 | Y20: 26 | Z20: 137 | AA20: 144
H21: 19 | I21: Bio(abfall)kompost (52 % TS) | J21: 0.9 | K21: 0.48 | L21: 0.1 | M21: organisch | N21: Rizinussschrot | O21: 6 | P21: 2.5 | Q21: 0 | R21: organisch | X21: 145-152 | Y21: 27 | Z21: =Z20+8 -> 145 | AA21: 152
A22: Festmist | B22: Rindermist 25 % TM (t) | C22: 6.5 | D22: 0.25 | E22: 0.1 | F22: 0 | G22: 0 | H22: 20 | I22: Grünschnittkompost (64 % TS) | J22: 0.65 | K22: 0.32 | L22: 0.04 | M22: organisch | N22: Haarmehlpellets | O22: 14 | P22: 0.9 | Q22: 0 | R22: organisch | X22: 153-160 | Y22: 28 | Z22: 153 | AA22: 160
B23: Schweinemist 25 % TM (t) | C23: 9.8 | D23: 0.3 | E23: 0.1 | F23: 0 | G23: 0 | H23: 21 | I23: Holzhäcksel > 40 mm | J23: 0.4 | K23: 0.1 | L23: n.n | M23: organisch | N23: Rapsschrot | O23: 5.8 | P23: 2.5 | Q23: 0 | R23: organisch | X23: 161-168 | Y23: 29 | Z23: 161 | AA23: 168
B24: Schafmist 25 % TM (t) | C24: 5.5 | D24: 0.25 | E24: 0.1 | F24: 0 | G24: 0 | H24: 22 | I24: Vinasse | J24: 5.2 | K24: 0.5 | L24: 0 | M24: organisch | N24: Trester (1 t = 2m3) | O24: 0.74 | P24: 0.23 | Q24: 0.07 | R24: organisch | X24: 169-176 | Y24: 30 | Z24: 169 | AA24: 176
B25: Pferdemist 25 % TM (t) | C25: 5 | D25: 0.25 | E25: 0.1 | F25: 0 | G25: 0 | H25: 23 | I25: Rizinussschrot | J25: 6 | K25: 2.5 | L25: 0 | M25: organisch | N25: Tresterkompost (40 % TS) | O25: 1.2 | P25: 0.5 | Q25: 0 | R25: organisch | X25: 177-184 | Y25: 31 | Z25: 177 | AA25: 184
B26: Hühnermist 50 % TM (t) | C26: 22 | D26: 0.3 | E26: 0.1 | F26: 0 | G26: 0 | H26: 24 | I26: Haarmehlpellets | J26: 14 | K26: 0.9 | L26: 0 | M26: organisch | N26: Weinhefe (30 % TM) (1 t = 1m3) | O26: 5.33 | P26: 0.3 | Q26: 0.06 | R26: organisch | X26: 185-192 | Y26: 32 | Z26: 185 | AA26: 192
B27: Eigenes Produkt (Festmist) | D27: =D25 -> 0.25 | E27: =E25 -> 0.1 | F27: =F25 -> 0 | G27: =G25 -> 0 | H27: 25 | I27: Rapsschrot | J27: 5.8 | K27: 2.5 | L27: 0 | M27: organisch | N27: Mosttrub, flüssig (1 t = 1m3) | O27: 0.5 | P27: 0.03 | Q27: 0 | R27: organisch | X27: 193-200 | Y27: 33 | Z27: 193 | AA27: 200
H28: 26 | I28: Trester (1 t = 2m3) | J28: 0.74 | K28: 0.23 | L28: 0.07 | M28: organisch | N28: Filtrationskieselgur (40 % TS) | O28: 0.64 | P28: 0.1 | Q28: 0 | R28: organisch
H29: 27 | I29: Tresterkompost (40 % TS) | J29: 1.2 | K29: 0.5 | L29: 0 | M29: organisch | N29: Wein/Schlempe ohne Hefe | O29: 0.02 | P29: 0.02 | Q29: 0 | R29: organisch
H30: 28 | I30: Weinhefe (30 % TM) (1 t = 1m3) | J30: 5.33 | K30: 0.3 | L30: 0.06 | M30: organisch
H31: 29 | I31: Mosttrub, flüssig (1 t = 1m3) | J31: 0.5 | K31: 0.03 | L31: 0 | M31: organisch
H32: 30 | I32: Filtrationskieselgur (40 % TS) | J32: 0.64 | K32: 0.1 | L32: 0 | M32: organisch
H33: 31 | I33: Wein/Schlempe ohne Hefe | J33: 0.02 | K33: 0.02 | L33: 0 | M33: organisch

Sheet Neue Parzellen (hidden)
A3: lfd | B3: BEW | C3: Betriebsinterne Parzellenbezeichnung | D3: Parzellen- größe (ha)
A4: 1
A5: 2
A6: 3
A7: 4
A8: 5
A9: 6
A10: 7
A11: 8
A12: 9
A13: 10
A14: 11
A15: 12
A16: 13
A17: 14
A18: 15
A19: 16
A20: 17
A21: 18
A22: 19
A23: 20
A24: 21
A25: 22
A26: 23
A27: 24
A28: 25
A29: 26
A30: 27
A31: 28
A32: 29
A33: 30
A34: 31
A35: 32
A36: 33
A37: 34
A38: 35
A39: 36
A40: 37
A41: 38
A42: 39
A43: 40
A44: 41
A45: 42
A46: 43
A47: 44
A48: 45
A49: 46
A50: 47
A51: 48
A52: 49
A53: 50
A54: 51
A55: 52
A56: 53
A57: 54
A58: 55
A59: 56
A60: 57
A61: 58
A62: 59
A63: 60
A64: 61
A65: 62
A66: 63
A67: 64
A68: 65
A69: 66
A70: 67
A71: 68
A72: 69
A73: 70
A74: 71
A75: 72
A76: 73
A77: 74
A78: 75
A79: 76
A80: 77
A81: 78
A82: 79
A83: 80
A84: 81
A85: 82
A86: 83
A87: 84
A88: 85
A89: 86
A90: 87
A91: 88
A92: 89
A93: 90
A94: 91
A95: 92
A96: 93
A97: 94
A98: 95
A99: 96
A100: 97
A101: 98
A102: 99
A103: 100
A104: 101
A105: 102
A106: 103
A107: 104
A108: 105
A109: 106
A110: 107
A111: 108
A112: 109
A113: 110
A114: 111
A115: 112
A116: 113
A117: 114
A118: 115
A119: 116
A120: 117
A121: 118
A122: 119
A123: 120
A124: 121
A125: 122
A126: 123
A127: 124
A128: 125
A129: 126
A130: 127
A131: 128
A132: 129
A133: 130
A134: 131
A135: 132
A136: 133
A137: 134
A138: 135
A139: 136
A140: 137
A141: 138
A142: 139
A143: 140
A144: 141
A145: 142
A146: 143
A147: 144
A148: 145
A149: 146
A150: 147
A151: 148
A152: 149
A153: 150
A154: 151
A155: 152
A156: 153
A157: 154
A158: 155
A159: 156
A160: 157
A161: 158
A162: 159
A163: 160
A164: 161
A165: 162
A166: 163
A167: 164
A168: 165
A169: 166
A170: 167
A171: 168
A172: 169
A173: 170
A174: 171
A175: 172
A176: 173
A177: 174
A178: 175
A179: 176
A180: 177
A181: 178
A182: 179
A183: 180
A184: 181
A185: 182
A186: 183
A187: 184
A188: 185
A189: 186
A190: 187
A191: 188
A192: 189
A193: 190
A194: 191
A195: 192
A196: 193
A197: 194
A198: 195
A199: 196
A200: 197
A201: 198
A202: 199
... 801 more rows

Sheet Betrieblicher Nährstoffeinsatz (hidden)
A1: Betrieblicher Nährstoffeinsatz für Ertragsanlagen
P2: DLR Rheinpfalz
B3: Betriebsname | C3: =IF(ISBLANK(Start!E10),"",Start!E10) -> Weingut Mustermann | P3: Version: | Q3: =Start!U3 -> 1.0.0
B4: Strasse Hausnr. | C4: =IF(ISBLANK(Start!E11),"",Start!E11) -> Riesling-Weg 1 | P4: Stand: | Q4: =Start!U4 -> 2021-01-15
B5: PLZ Ort | C5: =IF(ISBLANK(Start!E12),"",Start!E12) -> 67435 Neustadt/Wstr.
N7: Düngejahr: | O7: =IF(ISBLANK(Start!L10),"",Start!L10) -> 2021
C13: Datum der Erstellung / Unterschrift: | D13: 2021-03-28
E14: ______________________________________________
A19: BEW | B19: betriebsinterne Parzellenbezeichnung | E19: Bemerkung | F19: Parzellen- größe (ha) | G19: N-Düngebedarf (kg/ha) | I19: Ausbring- | J19: Düngemittel | K19: N | L19: Düngemittel | M19: Betrieblicher Nährstoffeinsatz pro Parzelle
G20: 3-Jahresgabe | H20: 1-Jahresgabe | I20: datum | J20: Name | K20: (kg/ha) | L20: (kg/Parzelle) | M20: Gesamt-N (kg) | N20: Gesamt-Phosphat (kg) | O20: N verfügbar (kg)
A21: 1 | B21: Obere Nußbiene (4468) RIESLING | E21: Trester-Dreijahresgabe | F21: 0.9 | G21: 150 | H21: 50 | I21: 2021-03-29 | J21: Trester (1 t = 2m3) | K21: 150 | L21: =IF(OR(J21="",K21=""),"",K21*F21/VLOOKUP(J21,Düngung,2,0)*100) -> 18243.24324 | M21: =IF(OR(J21="",K21="",F21=""),"",IF(VLOOKUP(J21,Düngung,2,0)<=0,0,L21*VLOOKUP(J21,Düngung,2,0)/100)) -> 135 | N21: =IF(OR(J21="",L21=""),"",L21*VLOOKUP(J21,Düngung,3,0)/100) -> 41.95945946 | O21: =IF(OR(J21="",M21=""),"",L21*VLOOKUP(J21,Düngung,4,0)/100) -> 12.77027027 | P21: =IF(OR(J21="",K21=""),"",VLOOKUP(J21,Düngung,5,FALSE)) -> organisch
A22: 1 | B22: Obere Nußbiene (4468) RIESLING___2 | F22: 0.9 | G22: 150 | H22: 50
A23: 1 | B23: Obere Nußbiene (4468) RIESLING___3 | F23: 0.9 | G23: 150 | H23: 50
A24: 1 | B24: Untere Nußbiene (4400) GEWÜRZTRAMINER | E24: Trester-Dreijahresgabe | F24: 0.3 | G24: 150 | H24: 50 | J24: =IF(ISBLANK(J21),"",J21) -> Trester (1 t = 2m3) | K24: =IF(ISBLANK(K21),"",K21) -> 150 | L24: 6081.081081 | M24: 45 | N24: 13.98648649 | O24: 4.256756757 | P24: organisch
A25: 1 | B25: Untere Nußbiene (4400) GEWÜRZTRAMINER___2 | F25: 0.3 | G25: 150 | H25: 50
A26: 1 | B26: Untere Nußbiene (4400) GEWÜRZTRAMINER___3 | F26: 0.3 | G26: 150 | H26: 50
A27: 1 | B27: Untere Nußbiene (4403) SPÄTBURGUNDER | E27: Trester-Dreijahresgabe | F27: 0.6 | G27: 150 | H27: 50 | J27: =IF(ISBLANK(J24),"",J24) -> Trester (1 t = 2m3) | K27: =IF(ISBLANK(K24),"",K24) -> 150 | L27: 12162.16216 | M27: 90 | N27: 27.97297297 | O27: 8.513513514 | P27: organisch
A28: 1 | B28: Untere Nußbiene (4403) SPÄTBURGUNDER___2 | F28: 0.6 | G28: 150 | H28: 50
A29: 1 | B29: Untere Nußbiene (4403) SPÄTBURGUNDER___3 | F29: 0.6 | G29: 150 | H29: 50
A30: 2 | B30: Im Glockenzehnt (9970) GOLDMUSKATELLER | E30: Trester-Dreijahresgabe | F30: 0.4 | G30: 150 | H30: 50 | I30: 29,03.2021 | J30: Trester (1 t = 2m3) | K30: 150 | L30: 8108.108108 | M30: 60 | N30: 18.64864865 | O30: 5.675675676 | P30: organisch
A31: 2 | B31: Im Glockenzehnt (9970) GOLDMUSKATELLER___2 | F31: 0.4 | G31: 150 | H31: 50
A32: 2 | B32: Im Glockenzehnt (9970) GOLDMUSKATELLER___3 | F32: 0.4 | G32: 150 | H32: 50
A33: 2 | B33: Im Glockenzehnt (9982) REGENT | E33: Trester-Dreijahresgabe | F33: 0.8 | G33: 150 | H33: 50 | J33: =IF(ISBLANK(J30),"",J30) -> Trester (1 t = 2m3) | K33: =IF(ISBLANK(K30),"",K30) -> 150 | L33: 16216.21622 | M33: 120 | N33: 37.2972973 | O33: 11.35135135 | P33: organisch
A34: 2 | B34: Im Glockenzehnt (9982) REGENT___2 | F34: 0.8 | G34: 150 | H34: 50
A35: 2 | B35: Im Glockenzehnt (9982) REGENT___3 | F35: 0.8 | G35: 150 | H35: 50
E37: auszuweisende Flächen: | F37: =IF(SUM(F19:F36)=0,"",SUM(F19:F36)/3) -> 3
L39: kg/Restfläche
E40: restliche Flächen: | F40: =IF(Start!R12="","",Start!R12-SUM(F37)) -> 31 | L40: =IF(OR(J40="",K40="",F40=""),"",IF(VLOOKUP(J40,Düngung,2,0)<=0,K40*F40/VLOOKUP(J40,Düngung,3,0)*100,K40*F40/VLOOKUP(J40,Düngung,2,0)*100)) ->  | M40: =IF(OR(J40="",K40="",F40=""),"",IF(VLOOKUP(J40,Düngung,2,0)<=0,0,L40*VLOOKUP(J40,Düngung,2,0)/100)) ->  | N40: =IF(OR(J40="",L40=""),"",L40*VLOOKUP(J40,Düngung,3,0)/100) ->  | O40: =IF(OR(J40="",M40=""),"",L40*VLOOKUP(J40,Düngung,4,0)/100) ->  | P40: =IF(OR(J40="",K40=""),"",VLOOKUP(J40,Düngung,5,FALSE)) -> 
F41: =IF(F40="","",F40) -> 31 | L41: =IF(OR(J41="",K41="",F41=""),"",IF(VLOOKUP(J41,Düngung,2,0)<=0,K41*F41/VLOOKUP(J41,Düngung,3,0)*100,K41*F41/VLOOKUP(J41,Düngung,2,0)*100)) ->  | M41: =IF(OR(J41="",K41="",F41=""),"",IF(VLOOKUP(J41,Düngung,2,0)<=0,0,L41*VLOOKUP(J41,Düngung,2,0)/100)) ->  | N41: =IF(OR(J41="",L41=""),"",L41*VLOOKUP(J41,Düngung,3,0)/100) ->  | O41: =IF(OR(J41="",M41=""),"",L41*VLOOKUP(J41,Düngung,4,0)/100) -> 
F42: =IF(F41="","",F41) -> 31
F43: =IF(F42="","",F42) -> 31

Sheet P2O5 Düngung (hidden)
A1: Betrieblicher P2O5-Einsatz für Ertragsanlagen
P2: DLR Rheinpfalz
A3: Betriebsname | B3: =IF(ISBLANK(Start!E10),"",Start!E10) -> Weingut Mustermann | P3: Version: | Q3: ='Betrieblicher Nährstoffeinsatz'!Q3 -> 1.0.0
A4: Strasse Hausnr. | B4: =IF(ISBLANK(Start!E11),"",Start!E11) -> Riesling-Weg 1 | P4: Stand: | Q4: ='Betrieblicher Nährstoffeinsatz'!Q4 -> 2021-01-15
A5: PLZ Ort | B5: =IF(ISBLANK(Start!E12),"",Start!E12) -> 67435 Neustadt/Wstr.
N7: Düngejahr: | O7: =IF(ISBLANK(Start!L10),"",Start!L10) -> 2021
C13: Datum der Erstellung / Unterschrift: | D13: 2021-03-28
E14: ______________________________________________
A19: Schlagbezeichnung | B19: betriebsinterne Parzellenbezeichnung | E19: Bemerkung | F19: Parzellen- größe (ha) | G19: P-Düngebedarf (kg/ha) | I19: Ausbring- | J19: Düngemittel | K19: P2O5 | L19: Düngemittel | M19: Betrieblicher Nährstoffeinsatz pro Parzelle
G20: 3-Jahresgabe | H20: 1-Jahresgabe | I20: datum | J20: Name | K20: (kg/ha) | L20: (kg/Parzelle) | M20: Gesamt-N (kg) | N20: Gesamt-Phosphat (kg) | O20: N verfügbar (kg)
A21: Am Eberacker | B21: 8480 - Weißburgunder | E21: Trester-Dreijahresgabe | F21: 0.7 | G21: 0 | H21: 0 | I21: 2021-03-29 | J21: Trester (1 t = 2m3) | K21: 30 | L21: =IF(OR(J21="",K21=""),"",K21*F21/VLOOKUP(J21,DüngungP,3,0)*100) -> 9130.434783 | M21: =IF(OR(J21="",K21="",F21=""),"",IF(VLOOKUP(J21,DüngungP,2,0)<=0,0,L21*VLOOKUP(J21,DüngungP,2,0)/100)) -> 67.56521739 | N21: =IF(OR(J21="",L21=""),"",L21*VLOOKUP(J21,DüngungP,3,0)/100) -> 21 | O21: =IF(OR(J21="",M21=""),"",L21*VLOOKUP(J21,DüngungP,4,0)/100) -> 6.391304348 | P21: =IF(OR(J21="",K21=""),"",VLOOKUP(J21,Düngung,5,FALSE)) -> organisch
A22: Am Eberacker | B22: 8480 - Weißburgunder___2 | F22: 0.7 | G22: 0 | H22: 0
A23: Am Eberacker | B23: 8480 - Weißburgunder___3 | F23: 0.7 | G23: 0 | H23: 0
A24: Im Glockenzehnt | B24: 9976 - Riesling | E24: Trester-Dreijahresgabe | F24: 1.4 | G24: 0 | H24: 0 | I24: 2021-03-29 | J24: Trester (1 t = 2m3) | K24: 30 | L24: 18260.86957 | M24: 135.1304348 | N24: 42 | O24: 12.7826087 | P24: organisch
A25: Im Glockenzehnt | B25: 9976 - Riesling___2 | F25: 1.4 | G25: 0 | H25: 0
A26: Im Glockenzehnt | B26: 9976 - Riesling___3 | F26: 1.4 | G26: 0 | H26: 0
E28: auszuweisende Flächen: | F28: =IF(SUM(F19:F27)=0,"",SUM(F19:F27)/3) -> 2.1
L30: kg/Restfläche
E31: restliche Flächen: | F31: =IF(Start!R12="","",Start!R12-SUM(F28)) -> 31.9 | L31: =IF(OR(J31="",K31=""),"",K31*F31/VLOOKUP(J31,DüngungP,3,0)*100) ->  | M31: =IF(OR(J31="",K31="",F31=""),"",IF(VLOOKUP(J31,DüngungP,2,0)<=0,0,L31*VLOOKUP(J31,DüngungP,2,0)/100)) ->  | N31: =IF(OR(J31="",L31=""),"",L31*VLOOKUP(J31,DüngungP,3,0)/100) ->  | O31: =IF(OR(J31="",M31=""),"",L31*VLOOKUP(J31,DüngungP,4,0)/100) ->  | P31: =IF(OR(J31="",K31=""),"",VLOOKUP(J31,Düngung,5,FALSE)) -> 
F32: =IF(F31="","",F31) -> 31.9 | L32: =IF(OR(J32="",K32=""),"",K32*F32/VLOOKUP(J32,DüngungP,3,0)*100) ->  | M32: =IF(OR(J32="",K32="",F32=""),"",IF(VLOOKUP(J32,DüngungP,2,0)<=0,0,L32*VLOOKUP(J32,DüngungP,2,0)/100)) ->  | N32: =IF(OR(J32="",L32=""),"",L32*VLOOKUP(J32,DüngungP,3,0)/100) ->  | O32: =IF(OR(J32="",M32=""),"",L32*VLOOKUP(J32,DüngungP,4,0)/100) ->  | P32: =IF(OR(J32="",K32=""),"",VLOOKUP(J32,Düngung,5,FALSE)) -> 

Sheet P2O5 Bedarf (hidden)
A1: Phosphat-Düngebedarfsermittlung für Ertragsanlagen | J1: DLR Rheinpfalz
J2: Version: | K2: ='Betrieblicher Nährstoffeinsatz'!Q3 -> 1.0.0
B3: Betriebsname | C3: =IF(Start!E10="","",Start!E10) -> Weingut Mustermann | J3: Stand: | K3: ='Betrieblicher Nährstoffeinsatz'!Q4 -> 2021-01-15
B4: Strasse Hausnr. | C4: =IF(Start!E11="","",Start!E11) -> Riesling-Weg 1
B5: PLZ Ort | C5: =IF(Start!E12="","",Start!E12) -> 67435 Neustadt/Wstr. | G5: Düngejahr: | H5: =IF(ISBLANK(Start!L10),"",Start!L10) -> 2021
E9: Bodenuntersuchung nach CAL Bodentiefe 0-30 cm | G9: P2O5 Düngebedarf pro Jahr
D10: Parzellen-größe (ha) | E10: Jahr der Unter-suchung | F10: P2O5 in mg/100g Boden
A11: lfd | B11: Schlagbezeichnung | C11: Parzellenbezeichung (kein Pflichtfeld) | G11: (kg/Parzelle) | H11: (kg/ha) | I11: im Schlag (kg/ha)
A12: 1 | B12: Am Eberacker | C12: 8480 - Weißburgunder | D12: 0.7 | E12: 2019 | F12: 56 | G12: =IF(OR(D12="",H12=""),"",D12*H12) -> 0 | H12: =IF(F12="","",IF(F12<12,30,IF(F12<=20,15,0))) -> 0 | I12: =IF(SUMIF(B12:B30,B12,J12:J30)=0,"",SUMIF((B12:B30),B12,G12:G30)/SUMIF(B12:B30,B12,J12:J30)) -> 0 | J12: =IF(F12="","",D12) -> 0.7
A13: =A12+1 -> 2 | B13: Im Glockenzehnt | C13: 9976 - Riesling | D13: 1.4 | E13: 2019 | F13: 38 | G13: =IF(OR(D13="",H13=""),"",D13*H13) -> 0 | H13: =IF(F13="","",IF(F13<12,30,IF(F13<=20,15,0))) -> 0 | I13: =IF(B13=B12,"",IF(SUMIF(B12:B30,B13,J12:J30)=0,"",SUMIF((B12:B30),B13,G12:G30)/SUMIF(B12:B30,B13,J12:J30))) -> 0 | J13: =IF(F13="","",D13) -> 1.4
A14: =A13+1 -> 3 | I14: =IF(B14=B13,"",IF(SUMIF(B12:B30,B14,J12:J30)=0,"",SUMIF((B12:B30),B14,G12:G30)/SUMIF(B12:B30,B14,J12:J30))) -> 
A15: 4 | I15: =IF(B15=B14,"",IF(SUMIF(B12:B30,B15,J12:J30)=0,"",SUMIF((B12:B30),B15,G12:G30)/SUMIF(B12:B30,B15,J12:J30))) -> 
A16: 5 | I16: =IF(B16=B15,"",IF(SUMIF(B12:B30,B16,J12:J30)=0,"",SUMIF((B12:B30),B16,G12:G30)/SUMIF(B12:B30,B16,J12:J30))) -> 
A17: 6 | I17: =IF(B17=B16,"",IF(SUMIF(B12:B30,B17,J12:J30)=0,"",SUMIF((B12:B30),B17,G12:G30)/SUMIF(B12:B30,B17,J12:J30))) -> 
A18: 7 | I18: =IF(B18=B17,"",IF(SUMIF(B12:B30,B18,J12:J30)=0,"",SUMIF((B12:B30),B18,G12:G30)/SUMIF(B12:B30,B18,J12:J30))) -> 
A19: 8 | G19: =IF(OR(D19="",H19=""),"",D19*H19) ->  | H19: =IF(F19="","",IF(F19<12,30,IF(F19<=20,15,0))) ->  | I19: =IF(B19=B18,"",IF(SUMIF(B12:B30,B19,J12:J30)=0,"",SUMIF((B12:B30),B19,G12:G30)/SUMIF(B12:B30,B19,J12:J30))) -> 
A20: 9 | I20: =IF(B20=B19,"",IF(SUMIF(B12:B30,B20,J12:J30)=0,"",SUMIF((B12:B30),B20,G12:G30)/SUMIF(B12:B30,B20,J12:J30))) -> 
A21: 10 | G21: =IF(OR(D21="",H21=""),"",D21*H21) ->  | H21: =IF(F21="","",IF(F21<12,30,IF(F21<=20,15,0))) ->  | I21: =IF(B21=B20,"",IF(SUMIF(B12:B30,B21,J12:J30)=0,"",SUMIF((B12:B30),B21,G12:G30)/SUMIF(B12:B30,B21,J12:J30))) -> 
A22: 11 | I22: =IF(B22=B21,"",IF(SUMIF(B12:B30,B22,J12:J30)=0,"",SUMIF((B12:B30),B22,G12:G30)/SUMIF(B12:B30,B22,J12:J30))) -> 
A23: 12 | I23: =IF(B23=B22,"",IF(SUMIF(B12:B30,B23,J12:J30)=0,"",SUMIF((B12:B30),B23,G12:G30)/SUMIF(B12:B30,B23,J12:J30))) -> 
A24: 13 | I24: =IF(B24=B23,"",IF(SUMIF(B12:B30,B24,J12:J30)=0,"",SUMIF((B12:B30),B24,G12:G30)/SUMIF(B12:B30,B24,J12:J30))) -> 
A25: 14 | G25: =IF(OR(D25="",H25=""),"",D25*H25) ->  | H25: =IF(F25="","",IF(F25<12,30,IF(F25<=20,15,0))) ->  | I25: =IF(B25=B24,"",IF(SUMIF(B12:B30,B25,J12:J30)=0,"",SUMIF((B12:B30),B25,G12:G30)/SUMIF(B12:B30,B25,J12:J30))) -> 
A26: 15 | I26: =IF(B26=B25,"",IF(SUMIF(B12:B30,B26,J12:J30)=0,"",SUMIF((B12:B30),B26,G12:G30)/SUMIF(B12:B30,B26,J12:J30))) -> 
A27: 16 | G27: =IF(OR(D27="",H27=""),"",D27*H27) ->  | H27: =IF(F27="","",IF(F27<12,30,IF(F27<=20,15,0))) ->  | I27: =IF(B27=B26,"",IF(SUMIF(B12:B30,B27,J12:J30)=0,"",SUMIF((B12:B30),B27,G12:G30)/SUMIF(B12:B30,B27,J12:J30))) ->  | J27: =IF(F27="","",D27) -> 
A28: 17 | G28: =IF(OR(D28="",H28=""),"",D28*H28) ->  | H28: =IF(F28="","",IF(F28<12,30,IF(F28<=20,15,0))) ->  | I28: =IF(B28=B27,"",IF(SUMIF(B12:B30,B28,J12:J30)=0,"",SUMIF((B12:B30),B28,G12:G30)/SUMIF(B12:B30,B28,J12:J30))) ->  | J28: =IF(F28="","",D28) -> 
A29: 18 | G29: =IF(OR(D29="",H29=""),"",D29*H29) ->  | H29: =IF(F29="","",IF(F29<12,30,IF(F29<=20,15,0))) ->  | I29: =IF(B29=B28,"",IF(SUMIF(B12:B30,B29,J12:J30)=0,"",SUMIF((B12:B30),B29,G12:G30)/SUMIF(B12:B30,B29,J12:J30))) ->  | J29: =IF(F29="","",D29) -> 
A30: =A29+1 -> 19 | G30: =IF(OR(D30="",H30=""),"",D30*H30) ->  | H30: =IF(F30="","",IF(F30<12,30,IF(F30<=20,15,0))) ->  | I30: =IF(B30=B29,"",IF(SUMIF(B12:B30,B30,J12:J30)=0,"",SUMIF((B12:B30),B30,G12:G30)/SUMIF(B12:B30,B30,J12:J30))) ->  | J30: =IF(F30="","",D30) -> 

Sheet N-Bedarf (hidden)
A1: Stickstoff-Düngebedarfsermittlung für Ertragsanlagen im Weinbau
B2: Betrieb: | C2: Düngejahr:
A3: Betriebsname | B3: =IF(ISBLANK('Betrieblicher Nährstoffeinsatz'!C3),"",'Betrieblicher Nährstoffeinsatz'!C3) -> Weingut Mustermann | C3: =IF(ISBLANK('Betrieblicher Nährstoffeinsatz'!O7),"",'Betrieblicher Nährstoffeinsatz'!O7) -> 2021
A4: Strasse Hausnr. | B4: =IF(ISBLANK('Betrieblicher Nährstoffeinsatz'!C4),"",'Betrieblicher Nährstoffeinsatz'!C4) -> Riesling-Weg 1
A5: PLZ Ort | B5: =IF(ISBLANK('Betrieblicher Nährstoffeinsatz'!C5),"",'Betrieblicher Nährstoffeinsatz'!C5) -> 67435 Neustadt/Wstr.
G6: DLR Rheinpfalz
D7: N-Düngebedarf (kg N/ha) | G7: Version: | H7: ='Betrieblicher Nährstoffeinsatz'!Q3 -> 1.0.0
A8: Bewirtschaftungs- einheit | B8: Bezeichnung | C8: Bemerkung | D8: maximal | E8: abzüglich organisch | F8: nachzu- führen | G8: Stand: | H8: ='Betrieblicher Nährstoffeinsatz'!Q4 -> 2021-01-15
A9: BEW 1 | D9: ='N-Düngebedarf 1-8'!F42 -> 50 | E9: =IF(AND('N-Düngebedarf 1-8'!F67="",'N-Düngebedarf 1-8'!F68=""),"",SUM('N-Düngebedarf 1-8'!F67:F68)) ->  | F9: =IF(D9="","",IF(E9="",D9,MAX(0,D9-E9))) -> 50
A10: BEW 2 | D10: ='N-Düngebedarf 1-8'!G42 -> 50 | E10: =IF(AND('N-Düngebedarf 1-8'!G67="",'N-Düngebedarf 1-8'!G68=""),"",SUM('N-Düngebedarf 1-8'!G67:G68)) ->  | F10: =IF(D10="","",IF(E10="",D10,MAX(0,D10-E10))) -> 50
A11: BEW 3 | D11: ='N-Düngebedarf 1-8'!H42 ->  | E11: =IF(AND('N-Düngebedarf 1-8'!H67="",'N-Düngebedarf 1-8'!H68=""),"",SUM('N-Düngebedarf 1-8'!H67:H68)) ->  | F11: =IF(D11="","",IF(E11="",D11,MAX(0,D11-E11))) -> 
A12: BEW 4 | D12: ='N-Düngebedarf 1-8'!I42 ->  | E12: =IF(AND('N-Düngebedarf 1-8'!I67="",'N-Düngebedarf 1-8'!I68=""),"",SUM('N-Düngebedarf 1-8'!I67:I68)) -> 
A13: BEW 5 | D13: ='N-Düngebedarf 1-8'!J42 ->  | E13: =IF(AND('N-Düngebedarf 1-8'!J67="",'N-Düngebedarf 1-8'!J68=""),"",SUM('N-Düngebedarf 1-8'!J67:J68)) -> 
A14: BEW 6 | D14: ='N-Düngebedarf 1-8'!K42 ->  | E14: =IF(AND('N-Düngebedarf 1-8'!K67="",'N-Düngebedarf 1-8'!K68=""),"",SUM('N-Düngebedarf 1-8'!K67:K68)) -> 
A15: BEW 7 | D15: ='N-Düngebedarf 1-8'!L42 ->  | E15: =IF(AND('N-Düngebedarf 1-8'!L67="",'N-Düngebedarf 1-8'!L68=""),"",SUM('N-Düngebedarf 1-8'!L67:L68)) -> 
A16: BEW 8 | D16: ='N-Düngebedarf 1-8'!M42 ->  | E16: =IF(AND('N-Düngebedarf 1-8'!M67="",'N-Düngebedarf 1-8'!M68=""),"",SUM('N-Düngebedarf 1-8'!M67:M68)) -> 

Sheet N-Düngebedarf 1-8 (hidden)
A1: Hinweise zur Bedienung der Excel-Anwendung:
A2: 1. Anwahl Bewirtschaftungseinheit: Die Bewirtschaftungseinheit (z. B. Feld "BEW 1") anklicken. Die Spalte färbt sich leuchtend grün.
A3: 2. Auswahl N-Zu- und Abschläge: Die N-Zu- und N-Abschläge durch anklicken des gewünschten Feldes übertragen (z. B. "+ 20")!
A5: Stickstoff-Düngebedarfsermittlung für Ertragsanlagen im Weinbau | D5: Zu- und Abschläge (kg Rein-N/ha) 6 6 6 | F5: BEW 1 | G5: BEW 2 | H5: BEW 3 | I5: BEW 4 | J5: BEW 5 | K5: BEW 6 | L5: BEW 7 | M5: BEW 8
A6: ="Betrieb: " & IF(ISBLANK(Start!E10),"",Start!E10) -> Betrieb: Weingut Mustermann | C6: ="Düngejahr: " & IF(ISBLANK(Start!L10),"",Start!L10) -> Düngejahr: 2021
A8: Ausgangswert bei einem Traubenertrag von 7 bis 14 t/ha | D8: + 40 | F8: 40 | G8: 40 | H8: 40 | I8: 40 | J8: 40 | K8: 40 | L8: 40 | M8: 40
A9: Traubenertrag | C9: > 14 t/ha | D9: + 10
A11: Rebenwachstum
A12: stark | D12: - 30 | F12: 0 | G12: 0
A13: ausgeglichen (normal, mittel) | D13: +/- 0
A14: schwach | D14: + 30*
A16: Humusgehalt in 0 bis 30 cm Bodentiefe [in %]
A17: Leichte Böden (S und l‘S) | C17: unter 1,5 % | D17: + 20* | F17: 20 | G17: 20
C18: 1,5 bis 2,5 % | D18: +/- 0
C19: über 2,5 % | D19: - 40
A20: Mittlere bis schwere Böden (lS, sL, uL, t‘L, tL, lT und T) | C20: unter 1,8 % | D20: + 20*
C21: 1,8 bis 3,0 % | D21: +/- 0
C22: über 3,0 % | D22: - 40
A23: Steinhaltige Böden (ab 20 % Steine) | C23: unter 4,0 % | D23: +/- 0
C24: über 4,0 % | D24: - 40
A25: Skelettreiche Böden (ab 50 % Steine) | C25: unter 7,0 % | D25: +/- 0*
C26: ab 7,0 % | D26: - 40
A28: Bodenpflege | D28: jede | E28: jede | F28: 0 | G28: 0 | H28: 0 | I28: 0 | J28: 0 | K28: 1 | L28: 0 | M28: 0
D29: 2. Gasse | E29: Gasse
A30: Dauerbegrünung mit Gräsern und anderen Nichtleguminosen | B30: Einsaat auf im Vorfeld offengehaltenem Boden | D30: + 20 | E30: + 40 | F30: 0 | G30: 0
B31: Einsaat nach vorherigem Begrünungsumbruch | D31: +/- 0 | E31: +/- 0
B32: Etablierte Dauerbegrünung | D32: +/- 0 | E32: +/- 0
B33: Stören einer Dauerbegrünung | D33: - 15 | E33: - 30
B34: Umbruch | C34: nach 5 Jahren | D34: - 20 | E34: - 40
C35: nach 10 Jahren | D35: - 40 | E35: - 80
A36: Dauerbegrünungen mit Leguminosen | B36: Walzen/Mulchen | C36: ab 50 % Leguminosen-Anteil | D36: - 10 | E36: - 20
B37: Umbruch | C37: unter 50 % Leguminosen-Anteil | D37: - 25 | E37: - 50
B38: Umbruch | C38: ab 50 % Leguminosen-Anteil | D38: - 50 | E38: - 100
A39: Offenhalten über Sommer (Umbruch Herbst-/Winterbegrünung) | D39: - 10 | E39: - 20 | F39: -10 | G39: -10
A40: Abdeckung zur Schonung der Bodenwasservorräte (Rinde, Stroh, Holzhäcksel) | D40: - 10 | E40: - 20
D41: *Humusversorgung verbessern (Beratungsmaterial)
A42: Ein-Jahresgabe (kg N/ha) | D42: max. 80 kg N/ha | F42: =IF(AND(ISBLANK(F9),ISBLANK(F12),ISBLANK(F17),ISBLANK(F30),ISBLANK(F36),ISBLANK(F39),ISBLANK(F40),F44=""),"",IF(AND(ISBLANK(F9),ISBLANK(F12),ISBLANK(F17),ISBLANK(F30),ISBLANK(F36),ISBLANK(F39),ISBLANK(F40),F44<>""),40-IF(F44="",0,F44),MAX(0,MIN(80,SUM(F30:F40,F17,F12,F9,F8)-IF(F44="",0,F44))))) -> 50 | G42: =IF(AND(ISBLANK(G9),ISBLANK(G12),ISBLANK(G17),ISBLANK(G30),ISBLANK(G36),ISBLANK(G39),ISBLANK(G40),G44=""),"",IF(AND(ISBLANK(G9),ISBLANK(G12),ISBLANK(G17),ISBLANK(G30),ISBLANK(G36),ISBLANK(G39),ISBLANK(G40),G44<>""),40-IF(G44="",0,G44),MAX(0,MIN(80,SUM(G30:G40,G17,G12,G9,G8)-IF(G44="",0,G44))))) -> 50
A43: Drei-Jahresgabe (kg N/ha) | D43: max. 240 kg N/ha | F43: =IF(F42="","",(F42-SUM(F67:F68))*3) -> 150 | G43: =IF(G42="","",(G42-SUM(G67:G68))*3) -> 150
A44: N-Anteil aus organischer Düngung | F44: =F70 ->  | G44: =G70 -> 
A46: Ort, Datum, Unterschrift des Betriebsinhabers:
A47: Organisches Modul
A48: 1. Anwahl Bewirtschaftungseinheit: Die Bewirtschaftungseinheit (z. B. Feld "BEW 1") anklicken. Die Spalte färbt sich leuchtend grün.
A49: 2. Anwahl Jahreszahl: Die Jahreszahl (Feld "2018") anklicken. Die Zelle rechts daneben färbt sich leuchtend grün.
A50: 3. Ausbringmenge: Die Ausbringmenge im Feld rechts neben der Jahreszahl in der korrekten Einheit (t oder m³) eintragen
A51: 4. Auswahl Düngung: Grünes Feld bei Kompost, etc. am rechten Rand (Pfeil) anwählen, Düngerart auswählen (z. B. "Holzhächsel")
A52: Stickstoff-Düngebedarfsermittlung für Ertragsanlagen im Weinbau | D52: Ausbringmenge in t (m³) / ha 6 6 6 | F52: BEW 1 | G52: BEW 2 | H52: BEW 3 | I52: BEW 4 | J52: BEW 5 | K52: BEW 6 | L52: BEW 7 | M52: BEW 8
A53: ="Betrieb: " & IF(ISBLANK(Start!E10),"",Start!E10) -> Betrieb: Weingut Mustermann | C53: ="Düngejahr: " & IF(ISBLANK(Start!L10),"",Start!L10) -> Düngejahr: 2021
A55: Organische Düngung
A57: aktuelles Jahr | C57: =IF(ISBLANK(Start!L10),"",Start!L10) -> 2021
C58: =IF(C57="","",C57-1) -> 2020
C59: =IF(C57="","",C57-2) -> 2019
C60: =IF(C57="","",C57-3) -> 2018
A62: Düngung
A63: Kompost, Pflanzenhilfsstoffe | L63: Reststoffe Weinbereitung
A64: Festmist | L64: Sonstige
A66: Anzurechnende Menge (Rein-N kg/ha) | F66: 0 | G66: 0 | H66: 0 | I66: 1 | J66: 0 | K66: 1
A67: aus organischer Düngung des aktuellen Jahres (geplant) | G67: =IF(ISBLANK(G57),"",G57) -> 
A68: ="aus organischer Düngung der Vorjahre " & C60 & " - " & C58 -> aus organischer Düngung der Vorjahre 2018 - 2020 | F68: =IF(AND(ISBLANK(F58),ISBLANK(F59),ISBLANK(F60)),"",SUM(F58:F60)) -> 
A70: aus organischer Dügung gesamt | F70: =IF(AND(F67="",F68=""),"",SUM(F67:F68)) ->  | G70: =IF(AND(G67="",G68=""),"",SUM(G67:G68)) -> 
A72: Art der organischen Düngung
C74: =C57 -> 2021 | D74: =IF(C74="","",C74-1) -> 2020 | G74: =IF(C74="","",D74-1) -> 2019 | J74: =IF(C74="","",G74-1) -> 2018
A75: Bewirtschaftungs- | B75: =F52 -> BEW 1
A76: einheit | B76: =G52 -> BEW 2
B77: =H52 -> BEW 3
B78: =I52 -> BEW 4
B79: =J52 -> BEW 5
B80: =K52 -> BEW 6
B81: =L52 -> BEW 7
B82: =M52 -> BEW 8
